[Event "Romanian Rapid Open 2022"]
[Site "Sebes"]
[Date "2022.12.02"]
[Round "2.22"]
[White "Cosma, Elena-Luminita"]
[Black "Saioc, David"]
[Result "1-0"]
[ECO "D10"]
[WhiteElo "2244"]
[BlackElo "2026"]
[Annotator "TA"]
[PlyCount "29"]
[EventDate "2022.12.02"]
[EventType "rapid"]
[EventCountry "ROU"]
[SourceTitle "playchess.com"]
[Source "ChessBase"]
[SourceQuality "1"]
[TimeControl "600+5"]

{[%evp 9,29,25,24,14,12,8,16,11,33,50,37,47,85,69,170,158,250,227,282,264,789,775]} 1. d4 {[%emt 0:00:02]} d5 {[%emt 0:00:02]} 2. c4 {[%emt 0:00:03]} c6 {[%emt 0:00:02]} 3. cxd5 {[%emt 0:00:02]} cxd5 {[%emt 0:00:01]} 4. Bf4 {[%emt 0:00:02]} Bf5 {[%emt 0:00:14]} 5. Nc3 {[%emt 0:00:02]} Nc6 {[%emt 0:00:17][%cal Oe7e5]} 6. e3 {[%emt 0:00:05] D10: Slav Defence: 3 cxd5 (without early Nf3) and 3 Nc3.} (6. e4 {feels hotter.} e5 7. dxe5 dxe4 8. Bb5) 6... e6 {[%emt 0:00:12]} 7. Qb3 {[%emt 0:01:39]} Qd7 {[%emt 0:01:12] 7...Bb4 might become the main line.} 8. Bb5 {[%emt 0:01:24] The position is equal.} a6 {[%emt 0:03:59]} 9. Bxc6 {[%emt 0:00:03]} Qxc6 {[%emt 0:00:02]} 10. Nf3 {[%emt 0:00:02][%cal Oe3e4] Hoping for e4!} b5 {[%emt 0:01:33] Inhibits e4.} 11. O-O {[%emt 0:00:05][%cal Og2g4] [#]} Nf6 $146 {[%emt 0:00:03] [#] Prevents g4.} ({Black should play} 11... Bd6 $14) ({Predecessor:} 11... Bd6 12. Rfc1 Bxf4 13. exf4 {½-½ (13) Jacimovic,D (2406)-Stojchev,G (2264) Struga 2007}) 12. Rfc1 $1 $18 {[%emt 0:00:20] And now a4 would win.} Qc4 {[%emt 0:01:22] Prevents a4.} (12... Qb6 $16 {is a better defense.} 13. Na4 Qd8) 13. Ne5 {[%emt 0:00:29]} Qxb3 {[%emt 0:00:10]} 14. axb3 {[%emt 0:00:02] Threatens to win with Nxb5.} b4 {[%emt 0:01:46]} (14... Bb4 15. Nxb5 O-O) 15. Nb5 {[%emt 0:00:19] Black did not feel at home in the position after the opening.   Weighted Error Value: White=0.03 (flawless) /Black=0.46} 1-0

[Event "Romanian Rapid Open 2022"]
[Site "Sebes"]
[Date "2022.12.02"]
[Round "2.24"]
[White "Ileana, George"]
[Black "Maresanu, Mina-Andrei"]
[Result "1-0"]
[ECO "A04"]
[WhiteElo "2343"]
[BlackElo "1877"]
[Annotator "TA"]
[PlyCount "63"]
[EventDate "2022.12.02"]
[EventType "rapid"]
[EventCountry "ROU"]
[SourceTitle "playchess.com"]
[Source "ChessBase"]
[SourceQuality "1"]
[TimeControl "600+5"]

{[%evp 9,63,7,17,23,19,25,30,21,29,24,21,23,56,35,49,42,64,60,114,112,128,120,194,197,197,189,181,194,185,200,388,388,640,660,744,394,544,550,822,812,1380,1006,997,976,903,694,746,545,994,1002,906,792,29988,29989,29998,29999]} 1. e4 {[%emt 0:00:02]} c5 {[%emt 0:00:02]} 2. Nf3 {[%emt 0:00:02]} Nc6 {[%emt 0:00:02]} 3. g3 {[%emt 0:00:06]} g6 {[%emt 0:10:16]} 4. Bg2 {[%emt 0:00:02]} Bg7 {[%emt 0:00:00]} 5. O-O {[%emt 0:00:03]} e6 {[%emt 0:00:00]} 6. c3 {[%emt 0:00:02] A04: Unusual lines after 1 Nf3 and King's Indian Attack.} Nge7 {[%emt 0:00:00]} 7. d4 {[%emt 0:00:02]} cxd4 {[%emt 0:00:00]} 8. cxd4 {[%emt 0:00:03] White has an edge.} d5 {[%emt 0:00:00]} 9. e5 {[%emt 0:00:06]} O-O {[%emt 0:00:00]} 10. Nc3 {[%emt 0:00:04]} Bd7 {[%emt 0:00:00]} 11. Bf4 {[%emt 0:00:41]} Rc8 {[%emt 0:00:00]} 12. Qd2 {[%emt 0:00:06]} Na5 {[%emt 0:00:00]} 13. b3 {[%emt 0:00:05] [#] Prevents Nc4.} Qb6 $146 {[%emt 0:00:00] White leaves nothing to chance now.} (13... Nac6 $14) ({Predecessor:} 13... b5 14. Rac1 Qb6 15. Ne2 Nb7 16. Bh6 b4 17. Bxg7 Kxg7 18. Qg5 Ng8 {½-½ (87) Morgunov,M (2129)-Schernthaner,D (1914) Tornelo INT 2020}) 14. Bg5 $16 {[%emt 0:00:28]} Nec6 {[%emt 0:00:00]} 15. Rac1 {[%emt 0:01:13]} f5 {[%emt 0:00:00]} (15... Rfe8 $16 {was worth a try.} 16. Na4 Qb4) 16. Na4 $18 {[%emt 0:00:46][%cal Bc3a4,Ba4c5,Bc5d3,Bd3f4][%mdl 32]} Qc7 {[%emt 0:00:00]} 17. Nc5 {[%emt 0:00:28]} b6 {[%emt 0:00:00]} 18. Nd3 {[%emt 0:00:57]} Qb8 {[%emt 0:00:00]} 19. h4 {[%emt 0:00:07]} Rfe8 $2 {[%emt 0:00:18]} (19... Nd8 {was necessary.} 20. Rxc8 Qxc8) 20. h5 {[%emt 0:00:10] [#] aiming for hxg6.} Nb7 $2 {[%emt 0:00:05]} (20... Ne7 21. Bf6 h6 22. Bxe7 Rxe7 23. hxg6 Rxc1) 21. hxg6 {[%emt 0:00:24]} hxg6 {[%emt 0:00:02]} 22. Nf4 {[%emt 0:00:03]} Kf7 {[%emt 0:00:10]} 23. Nh4 {[%emt 0:00:06]} Rg8 {[%emt 0:00:43]} 24. Nfxg6 {[%emt 0:00:17]} Bf8 {[%emt 0:00:03]} 25. Nxf8 {[%emt 0:00:06]} Rcxf8 {[%emt 0:00:02]} 26. Bf6 {[%emt 0:00:21] A strong pair of Bishops.} Ke8 {[%emt 0:00:08]} 27. Qe3 {[%emt 0:01:56]} Nbd8 {[%emt 0:00:01]} 28. Rc3 {[%emt 0:00:12]} Bc8 {[%emt 0:00:02]} 29. Rfc1 {[%emt 0:00:04]} Bb7 {[%emt 0:00:08]} 30. Bf1 {[%emt 0:00:06]} Na5 {[%emt 0:00:13]} 31. Bb5+ {[%emt 0:00:06]} Kf7 {[%emt 0:00:03]} 32. Rc7+ {[%emt 0:00:06] Weighted Error Value: White=0.42/Black=0.75} 1-0

[Event "Romanian Rapid Open 2022"]
[Site "Sebes"]
[Date "2022.12.02"]
[Round "2.25"]
[White "Danila, Tudor-Gabriel"]
[Black "Cnejev, Vladimir-Alexandru"]
[Result "0-1"]
[ECO "C47"]
[WhiteElo "1939"]
[BlackElo "2293"]
[Annotator "TA"]
[PlyCount "114"]
[EventDate "2022.12.02"]
[EventType "rapid"]
[EventCountry "ROU"]
[SourceTitle "playchess.com"]
[Source "ChessBase"]
[SourceQuality "1"]
[TimeControl "600+5"]

{[%evp 17,114,0,0,0,0,0,0,0,0,0,0,0,0,0,0,-27,-12,-46,0,-31,-27,-60,0,-32,-10,-146,-136,-205,-198,-203,-205,-261,-165,-606,-115,-157,-7,-102,-100,-225,-206,-222,-60,-49,-58,-141,-58,-211,-212,-417,-442,-414,-158,-173,-153,-161,0,0,19,40,62,32,29,53,54,-108,-79,-174,-22,-202,-192,-1137,-367,-1289,-363,-5277,-5269,-2781,-2229,-1366,-930,-931,-926,-912,-912,-845,-845,-995,-890,-827,-855,-1024,-1039,-1214,-1198,-1202,-1146,-29983,-29984]} 1. e4 {[%emt 0:00:02]} e5 {[%emt 0:00:01]} 2. Nf3 {[%emt 0:00:01]} Nc6 {[%emt 0:00:01]} 3. Nc3 {[%emt 0:00:01]} Nf6 {[%emt 0:00:01]} 4. d4 {[%emt 0:00:01]} exd4 {[%emt 0:00:03]} 5. Nxd4 {[%emt 0:00:01]} Bb4 {[%emt 0:00:02]} 6. Nxc6 {[%emt 0:00:02]} bxc6 {[%emt 0:00:01]} 7. Bd3 {[%emt 0:00:01]} O-O {[%emt 0:00:04]} 8. O-O {[%emt 0:00:02]} d5 {[%emt 0:00:01]} 9. exd5 {[%emt 0:00:02]} cxd5 {[%emt 0:00:02]} 10. h3 {[%emt 0:00:01] Against Bg4. C47: Scotch Four Knights and Four Knights with 4 g3.} c6 {[%emt 0:01:14]} 11. Qf3 {[%emt 0:00:07]} Re8 {[%emt 0:00:13]} 12. Bf4 {[%emt 0:00:44] The position is equal.} Be6 {[%emt 0:00:53]} 13. Rfd1 {[%emt 0:01:17] 13.Rad1 is a critical line.} Bd6 {[%emt 0:00:28]} 14. Ne2 {[%emt 0:00:05]} Rb8 {[%emt 0:00:46]} 15. b3 {[%emt 0:00:01]} c5 {[%emt 0:00:08]} 16. c4 {[%emt 0:02:55]} d4 {[%emt 0:00:36] [#]} 17. Bg5 $146 {[%emt 0:00:01]} (17. Rab1 {simplifies} Bxf4 18. Qxf4 a5 19. Re1) ({Predecessor:} 17. Re1 Bc8 18. Bxd6 Qxd6 19. Ng3 Rxe1+ 20. Rxe1 Bb7 21. Nf5 Bxf3 22. Nxd6 Bc6 23. Re5 {1-0 (35) Ekstroem,R (2377)-Arcuti,D (2288) Flims 2016}) 17... Be5 {[%emt 0:02:52]} (17... h6 $1 $15 18. Bxf6 Qxf6 19. Qxf6 gxf6) 18. Re1 {[%emt 0:00:41]} h6 {[%emt 0:00:29]} 19. Bd2 {[%emt 0:01:25]} Qc7 {[%emt 0:00:25]} (19... Bc8 $1 $15 20. Qc6 Qe7) 20. Rad1 {[%emt 0:01:18]} Bd7 {[%emt 0:01:00]} 21. Bf4 {[%emt 0:00:38]} (21. Nf4 $1 $11) 21... Bc6 $1 $17 {[%emt 0:00:19]} 22. Bxe5 {[%emt 0:00:53]} (22. Qg3 $17) 22... Rxe5 $19 {[%emt 0:00:01]} 23. Qg3 {[%emt 0:00:01]} Rbe8 {[%emt 0:00:10]} 24. Rf1 {[%emt 0:00:01]} Qa5 {[%emt 0:00:57] Strongly threatening ...Rg5.} 25. Nc1 $2 {[%emt 0:00:20]} (25. Nf4) 25... Kh8 $2 {[%emt 0:00:17]} (25... Rg5 $19 {is more deadly.} 26. Qh2 Rxg2+ 27. Qxg2 Bxg2 28. Kxg2 Nh5) 26. f3 {[%emt 0:00:12]} Qc3 {[%emt 0:00:11]} (26... Nh5 $17 27. Qh2 Qd8) 27. Bb1 {[%emt 0:00:02]} (27. Qf4 $11 {keeps the balance.}) 27... Nh5 $17 {[%emt 0:00:23]} 28. Qh4 {[%emt 0:00:32]} (28. Qf2 $17) 28... Qe3+ {[%emt 0:00:11]} 29. Kh2 {[%emt 0:00:26] aiming for f4.} Qf4+ $2 {[%emt 0:00:24]} (29... Nf4 $1 $19 {[%cal Rf4g2]} 30. Qf2 a5) 30. Qxf4 $15 {[%emt 0:00:05]} Nxf4 {[%emt 0:00:01]} 31. g3 {[%emt 0:00:11] [#]} (31. b4 $15) 31... Nh5 {[%emt 0:00:12] Black is much more active.} (31... Re2+ $1 $17 {[%mdl 512]} 32. Nxe2 Rxe2+ 33. Kh1 Nxh3) 32. Nd3 $2 {[%emt 0:00:02]} (32. Kg2 $15) 32... Re2+ $19 {[%emt 0:00:01]} 33. Kg1 $2 {[%emt 0:00:33]} (33. Rf2 {is the only way for White.} Rxf2+ 34. Nxf2) 33... Nxg3 {[%emt 0:00:01]} 34. Rf2 {[%emt 0:00:01]} Nh5 $2 {[%emt 0:00:19]} (34... R2e3 $19 {and Black stays clearly on top.} 35. Kh2 Bxf3) 35. Nxc5 $17 {[%emt 0:00:05]} Nf4 {[%emt 0:00:01]} 36. Rxe2 {[%emt 0:00:05]} Rxe2 {[%emt 0:00:01]} (36... Nxe2+ $19 37. Kf2 Nc3) 37. Rxd4 $11 {[%emt 0:00:07]} Nxh3+ {[%emt 0:00:21]} (37... g5 $5 {[%cal Re2e1]} 38. Be4 Nxh3+ 39. Kf1 Rf2+ 40. Ke1 Bxe4 41. Nxe4 Rxa2 $11) 38. Kf1 Rf2+ {[%emt 0:00:00]} 39. Ke1 {[%emt 0:00:02] White threatens Rd8+ and mate.} g6 $1 {[%emt 0:00:00]} 40. Be4 {[%emt 0:00:01]} Bxe4 {[%emt 0:00:00]} 41. fxe4 {[%emt 0:00:01]} (41. Nxe4 $14 {stays ahead.} Rxa2 42. c5) 41... Rxa2 $14 {[%emt 0:00:00][%mdl 4096] Endgame KRN-KRN} 42. Rd7 {[%emt 0:00:03]} (42. e5 $17) 42... Kg7 $2 {[%emt 0:00:04]} (42... Ng5 $19 {White must now prevent ...h5.} 43. Nd3 a5) 43. Nd3 $2 {[%emt 0:00:06]} (43. e5 $11 Kf8 44. e6) 43... Ng5 {[%emt 0:00:05] Threatens to win with ...h5.} 44. Rd4 $2 {[%emt 0:00:16]} (44. c5) 44... h5 $2 {[%emt 0:00:08]} (44... Nf3+ 45. Kf1 Nxd4) 45. c5 $2 {[%emt 0:00:01]} (45. Kf1) 45... h4 $2 {[%emt 0:00:10]} (45... Nf3+ 46. Kf1 Nxd4) 46. Rc4 $2 {[%emt 0:00:02]} (46. Ra4 Nf3+ 47. Kf1) 46... h3 $19 {[%emt 0:00:04][%cal Bh4h3,Bh3h2][%mdl 32]} 47. Nf2 {[%emt 0:00:09]} h2 {[%emt 0:00:04][%cal Oa2f2] ( -> ...Rxf2!)} 48. Nh1 {[%emt 0:00:09]} Ra1+ {[%emt 0:00:02]} 49. Kf2 {[%emt 0:00:01]} Rxh1 {[%emt 0:00:02] KRN-KR} 50. Kg2 {[%emt 0:00:09]} Re1 {[%emt 0:00:04]} 51. Kxh2 {[%emt 0:00:02]} Rxe4 {[%emt 0:00:02]} 52. Rc3 {[%emt 0:00:03]} Re2+ {[%emt 0:00:03]} 53. Kg1 {[%emt 0:00:03]} Re7 {[%emt 0:00:06]} 54. Kg2 {[%emt 0:00:03]} Ne4 {[%emt 0:00:03]} 55. Rc4 {[%emt 0:00:01]} f5 {[%emt 0:00:07]} 56. b4 {[%emt 0:00:01]} Rc7 {[%emt 0:00:11]} 57. Kf1 {[%emt 0:00:07]} Nd2+ {[%emt 0:00:01] Weighted Error Value: White=0.93/Black=0.70} 0-1

[Event "Romanian Rapid Open 2022"]
[Site "Sebes"]
[Date "2022.12.02"]
[Round "2.26"]
[White "Nastore, Pavel-Alexandru"]
[Black "Dobre, Ana-Margareta-Alexan"]
[Result "0-1"]
[ECO "D02"]
[WhiteElo "2218"]
[BlackElo "1857"]
[Annotator "TA"]
[PlyCount "88"]
[EventDate "2022.12.02"]
[EventType "rapid"]
[EventCountry "ROU"]
[SourceTitle "playchess.com"]
[Source "ChessBase"]
[SourceQuality "1"]
[TimeControl "600+5"]

{[%evp 11,88,0,0,2,16,0,12,-14,-2,-18,0,0,0,0,0,-14,-3,-8,0,0,8,3,25,5,13,2,3,-4,0,0,0,0,20,25,28,18,27,27,25,33,27,24,70,75,91,21,31,0,15,11,120,0,0,-22,-41,-38,-35,-27,-27,-108,-108,-76,0,0,0,0,0,0,0,0,35,0,0,-1678,-1656,-1370,-1293,-1175,-1091]} 1. d4 {[%emt 0:00:02]} Nf6 {[%emt 0:00:01]} 2. Nf3 {[%emt 0:00:01]} e6 {[%emt 0:00:01]} 3. g3 {[%emt 0:00:02]} d5 {[%emt 0:00:00]} 4. Bg2 {[%emt 0:00:01]} Be7 {[%emt 0:00:01]} 5. O-O {[%emt 0:00:03]} O-O {[%emt 0:00:02]} 6. b3 {[%emt 0:00:02]} c5 {[%emt 0:00:07]} 7. Bb2 {[%emt 0:00:06] 7.dxc5 is the fancy move. D02: 1 d4 d5 2 Nf3 sidelines, including 2...Nf6 3 g3 and 2...Nf6 3 Bf4.} b6 {[%emt 0:00:04]} 8. Nbd2 {[%emt 0:00:35]} Bb7 {[%emt 0:00:01]} 9. Ne5 {[%emt 0:00:02] The position is equal.} cxd4 {[%emt 0:01:00]} 10. Bxd4 {[%emt 0:00:11]} Nc6 {[%emt 0:00:09]} 11. Nxc6 {[%emt 0:00:05]} Bxc6 {[%emt 0:00:02]} 12. c4 {[%emt 0:01:50]} Rc8 {[%emt 0:00:01] [#]} 13. e3 $146 {[%emt 0:00:33][%cal Be2e3,Be3e4][%mdl 32]} ({Predecessor:} 13. cxd5 Nxd5 14. Ne4 f5 15. Nd2 Bf6 16. Nc4 Qc7 17. Bxf6 gxf6 18. Rc1 Rfd8 19. Qd2 {1-0 (107) Radenic,F (2083)-Ouellet,M (1947) Poprad 2016}) 13... dxc4 {[%emt 0:00:09]} 14. Bxc6 {[%emt 0:00:18] Threatens to win with Bg2.} Rxc6 {[%emt 0:00:02]} 15. Nxc4 {[%emt 0:00:02]} Qd5 {[%emt 0:03:37]} 16. Qe2 {[%emt 0:00:02]} Qf5 {[%emt 0:00:34]} 17. f3 {[%emt 0:01:31]} Rfc8 {[%emt 0:00:34]} 18. e4 {[%emt 0:00:24]} Qh5 {[%emt 0:00:04]} 19. Qf2 {[%emt 0:02:51]} b5 {[%emt 0:00:34]} 20. Ne3 {[%emt 0:00:04]} Bc5 {[%emt 0:01:21]} 21. Rad1 {[%emt 0:00:00]} Bb6 {[%emt 0:01:49]} 22. Bxb6 {[%emt 0:00:26]} axb6 {[%emt 0:00:01]} 23. Rd3 {[%emt 0:00:12]} Rc1 {[%emt 0:00:13]} 24. Rxc1 {[%emt 0:00:05]} Rxc1+ {[%emt 0:00:02]} 25. Kg2 {[%emt 0:00:02] Intending Rd8+ and mate.} h6 {[%emt 0:00:05]} 26. Qd2 {[%emt 0:00:10]} Qc5 {[%emt 0:00:01]} (26... Rc7 $11) 27. b4 $1 $14 {[%emt 0:01:20]} Qc7 {[%emt 0:00:12]} 28. Qb2 {[%emt 0:00:22]} (28. Rd8+ $16 Kh7 29. e5) 28... Re1 {[%emt 0:00:35]} 29. Qd2 {[%emt 0:00:18]} (29. Nd1 {keeps more tension.} Qc4 30. Qd2 Kh7 31. h4) 29... Ra1 {[%emt 0:00:38]} 30. a3 {[%emt 0:00:55]} (30. Ra3 {looks sharper.} Qe5 31. Nd1 Rb1 32. Rb3) 30... Rc1 {[%emt 0:00:09]} (30... Qe5 $11) 31. Qe2 {[%emt 0:00:00]} (31. Rd8+ $16 Kh7 32. e5) 31... Nd7 $11 {[%emt 0:00:08]} 32. Qd2 {[%emt 0:00:00]} Ne5 {[%emt 0:00:02]} 33. Rd8+ {[%emt 0:00:00]} Kh7 {[%emt 0:00:01][%cal Oc1g1] And now ...Rg1+! would win.} 34. f4 {[%emt 0:00:00]} Ng4 {[%emt 0:00:03]} 35. Rd3 {[%emt 0:00:14]} (35. Nxg4 $2 Rc2 $17) (35. Rd4 $1 $11) 35... Nxe3+ $17 {[%emt 0:00:11]} 36. Qxe3 {[%emt 0:00:01][%cal Od3d7][%mdl 4096] Endgame [#] KQR-KQR} Rc2+ {[%emt 0:00:10]} (36... Qc4 $1 $17) 37. Rd2 $11 {[%emt 0:00:02]} Rc3 $36 {[%emt 0:00:11][%mdl 2048] Black is pushing.} 38. Rd3 {[%emt 0:00:04]} Rc2+ {[%emt 0:00:08]} 39. Rd2 {[%emt 0:00:10]} Rc1 {[%emt 0:00:03]} 40. Qd3 {[%emt 0:00:07]} g6 {[%emt 0:00:01]} 41. e5 {[%emt 0:00:03]} (41. Qxb5 $5 {[%cal Rd2d7]} Rc2 42. Qd3 Rxd2+ 43. Qxd2 $14) 41... Qc6+ {[%emt 0:00:03]} 42. Qf3 $2 {[%emt 0:00:03][%mdl 8192] [#]} (42. Kh3 $11) 42... Rg1+ $3 $19 {[%emt 0:00:01][%mdl 512] Black is clearly winning.} 43. Kxg1 {[%emt 0:00:08]} Qxf3 {[%emt 0:00:01]} 44. Rf2 {[%emt 0:00:06]} Qxa3 {[%emt 0:00:01] Weighted Error Value: White=0.31/Black=0.14 (very precise)} 0-1

[Event "Romanian Rapid Open 2022"]
[Site "Sebes"]
[Date "2022.12.02"]
[Round "2.27"]
[White "Craciun, Ovidiu"]
[Black "Daianu, Cristian-Clement"]
[Result "0-1"]
[ECO "B90"]
[WhiteElo "1857"]
[BlackElo "2189"]
[Annotator "TA"]
[PlyCount "40"]
[EventDate "2022.12.02"]
[EventType "rapid"]
[EventCountry "ROU"]
[SourceTitle "playchess.com"]
[Source "ChessBase"]
[SourceQuality "1"]
[TimeControl "600+5"]

{[%evp 10,40,25,0,0,-3,1,-9,0,-20,7,0,18,42,42,3,68,-11,-10,-248,-224,-383,-414,-514,-527,-564,-570,-550,-549,-1274,-562,-1356,-616]} 1. e4 {[%emt 0:00:03]} c5 {[%emt 0:00:02]} 2. Nf3 {[%emt 0:00:02]} d6 {[%emt 0:00:01]} 3. d4 {[%emt 0:00:02]} cxd4 {[%emt 0:00:02]} 4. Nxd4 {[%emt 0:00:02]} Nf6 {[%emt 0:00:02]} 5. Nc3 {[%emt 0:00:02]} a6 {[%emt 0:00:02]} 6. Qf3 {[%emt 0:00:02]} g6 {[%emt 0:01:09] B90: Sicilian Najdorf: Unusual White 6th moves, 6 Be3 Ng4 and 6 Be3 e5.} 7. Be2 {[%emt 0:00:46]} Bg7 {[%emt 0:00:02]} 8. Be3 {[%emt 0:00:02] [#]} O-O $146 {[%emt 0:00:47] The position is equal.} ({Predecessor:} 8... Ng4 9. O-O-O h5 10. Kb1 Nd7 11. h3 Nde5 12. Qf4 Bh6 13. Qg3 Nxe3 14. fxe3 Bd7 {½-½ (47) Weise,W (1591)-Oliveira,T (1988) Montevideo 2014}) 9. Qg3 {[%emt 0:00:16]} Nc6 {[%emt 0:01:51]} 10. O-O-O {[%emt 0:00:15]} Nxd4 {[%emt 0:00:16]} 11. Bxd4 {[%emt 0:00:03]} Be6 {[%emt 0:00:13]} 12. h4 {[%emt 0:00:48] Black should prevent h5.} Rc8 {[%emt 0:00:05]} ({Black should play} 12... Qa5 $11) 13. e5 {[%emt 0:00:33]} (13. h5 $14) 13... dxe5 $11 {[%emt 0:00:15]} 14. Bxe5 {[%emt 0:00:16] White does not recover from this.} (14. Qxe5 $11 h5 15. a3) 14... Qa5 $1 $19 {[%emt 0:00:02] aiming for ...Bh6+.} 15. f4 $2 {[%emt 0:02:50]} (15. Bd4 {was the only defense.}) 15... b5 $1 {[%emt 0:00:12]} ({Not} 15... Bxa2 16. Nxa2 Qxa2 17. Qa3 Qxa3 18. bxa3 $17) 16. a3 {[%emt 0:00:42]} b4 {[%emt 0:00:08][%cal Ob4a3] Threatens to win with ...bxa3! Black is clearly winning.} 17. axb4 {[%emt 0:00:19]} Qa1+ {[%emt 0:00:26]} 18. Kd2 {[%emt 0:00:34]} Qxb2 {[%emt 0:00:24]} 19. Rb1 {[%emt 0:00:05] [#]} Rfd8+ {[%emt 0:00:07]} (19... Ne4+ $142 $1 {[%mdl 512]} 20. Ke1 Qxb1+ 21. Nxb1 Nxg3) 20. Bd3 {[%emt 0:00:21] [#]} Qxc3+ {[%emt 0:00:14] Weighted Error Value: White=1.14/Black=0.32} 0-1

[Event "Romanian Rapid Open 2022"]
[Site "Sebes"]
[Date "2022.12.02"]
[Round "2.28"]
[White "Dragomirescu, Angela"]
[Black "Zaharie, Ioan"]
[Result "1-0"]
[ECO "A07"]
[WhiteElo "2104"]
[BlackElo "1704"]
[Annotator "TA RC"]
[PlyCount "83"]
[EventDate "2022.12.02"]
[EventType "rapid"]
[EventCountry "ROU"]
[SourceTitle "playchess.com"]
[Source "ChessBase"]
[SourceQuality "1"]
[TimeControl "600+5"]

{[%evp 12,83,-4,-7,-1,-6,15,9,60,0,9,-20,0,-35,0,-5,0,-38,-17,-145,-7,-10,0,-54,-36,-42,-51,-45,12,-13,22,19,18,-4,56,9,65,41,53,25,77,76,102,61,243,265,260,206,204,201,202,177,171,179,290,185,183,180,185,162,196,207,235,207,223,239,310,265,390,391,374,0,371,359]} 1. Nf3 {[%emt 0:00:03]} Nf6 {[%emt 0:00:03]} 2. g3 {[%emt 0:00:03]} g6 {[%emt 0:00:02]} 3. Bg2 {[%emt 0:00:01]} Bg7 {[%emt 0:00:02]} 4. O-O {[%emt 0:00:02]} O-O {[%emt 0:00:03]} 5. d3 {[%emt 0:00:05]} d5 {[%emt 0:00:03]} 6. c3 {[%emt 0:00:09]} c6 {[%emt 0:00:02]} 7. Nbd2 {[%emt 0:00:06]} Re8 {[%emt 0:00:02] A07: Réti Opening: New York and Capablanca Systems.} 8. e4 {[%emt 0:00:04]} dxe4 {[%emt 0:00:09]} 9. dxe4 {[%emt 0:00:02]} e5 {[%emt 0:00:05]} (9... Nfd7 $11) 10. Qc2 {[%emt 0:00:12]} (10. Nc4 $14) 10... Qc7 $11 {[%emt 0:00:06]} 11. Nc4 {[%emt 0:00:25]} b5 {[%emt 0:00:19] [#]} 12. Ncd2 $146 {[%emt 0:02:01]} ({Predecessor:} 12. Ne3 Bb7 13. b3 Nbd7 14. c4 b4 15. Bb2 Nc5 16. Nd2 Rad8 17. Rfd1 Nd3 18. Nd5 cxd5 19. Qxd3 dxe4 {1-0 (63) Truong,T (1840)-Mottais,F (2154) Noisy le Grand 2003}) 12... Bb7 {[%emt 0:00:13]} 13. a4 {[%emt 0:00:14]} Nbd7 {[%emt 0:00:13]} 14. Nb3 {[%emt 0:00:05]} a6 {[%emt 0:00:11]} 15. Qe2 {[%emt 0:01:04]} (15. Nfd2 $11) 15... Nb6 {[%emt 0:00:21]} (15... c5 $17 16. axb5 axb5 17. Rxa8 Rxa8) 16. Nc5 {[%emt 0:00:22]} Bc8 {[%emt 0:00:13]} 17. Nd2 {[%emt 0:01:12]} (17. b3 $11) 17... Nfd7 {[%emt 0:00:23]} (17... Bf8 $5 {[%cal Rf8c5]} 18. Ndb3 a5 $11) 18. Ndb3 {[%emt 0:00:16]} Nxc5 {[%emt 0:00:36]} 19. Nxc5 {[%emt 0:00:01]} Nd7 {[%emt 0:00:07]} (19... Bf8 $15 20. Be3 Bxc5 21. Bxc5 Nxa4) 20. Nb3 {[%emt 0:00:14]} Rb8 {[%emt 0:00:10]} 21. axb5 {[%emt 0:00:03]} cxb5 {[%emt 0:00:09]} 22. Be3 {[%emt 0:00:04]} Bb7 {[%emt 0:00:18]} ({Black should play} 22... Nb6 $11) 23. Rfd1 {[%emt 0:00:07]} (23. Rfc1 $14) 23... Rbc8 {[%emt 0:00:37]} ({Black should try} 23... Bf8 $11) 24. Bh3 {[%emt 0:00:53]} Rcd8 {[%emt 0:00:05]} 25. f3 {[%emt 0:00:39]} (25. Na5 $5 {[%cal Ra5b7]}) 25... Bf8 {[%emt 0:00:42] [#]} (25... Nb6 $11) 26. Qf2 $1 $16 {[%emt 0:00:02] Black is now going downhill.} Bc8 {[%emt 0:00:46]} 27. Bf1 {[%emt 0:00:07][%cal Oc3c4] Prevents Qc4. White is much more active.} Nb8 $2 {[%emt 0:00:35]} (27... Re6 $14) 28. Bb6 $18 {[%emt 0:00:04]} Qe7 {[%emt 0:00:38]} 29. Rxd8 {[%emt 0:00:09]} Rxd8 {[%emt 0:00:01]} 30. Bxd8 {[%emt 0:00:02]} Qxd8 {[%emt 0:00:02]} 31. Be2 {[%emt 0:00:24]} Qc7 {[%emt 0:00:07]} 32. Kg2 {[%emt 0:00:19]} Qd7 {[%emt 0:00:15]} (32... Kg7 $142 33. Bd1 Nd7) 33. Rd1 {[%emt 0:00:09]} Qc7 {[%emt 0:00:18]} 34. Bf1 {[%emt 0:00:37]} Be6 {[%emt 0:00:06]} 35. Nc1 {[%emt 0:00:41][%cal Bb3c1,Bc1d3,Bd3c5][%mdl 32]} Bc5 {[%emt 0:00:08]} 36. Qd2 {[%emt 0:00:02] [#] aiming for Qd8+.} Nc6 {[%emt 0:00:12] Against Qd8+} 37. Nd3 {[%emt 0:00:08]} Ba7 {[%emt 0:00:11]} 38. b4 {[%emt 0:00:26]} Kg7 {[%emt 0:00:11]} 39. Nc5 {[%emt 0:00:05]} Bc8 {[%emt 0:00:06]} (39... Bxc5 $142 40. bxc5 Qb7) 40. Qd6 {[%emt 0:00:05]} Qb6 {[%emt 0:00:13]} 41. Qd2 {[%emt 0:00:30]} Qc7 $1 {[%emt 0:00:14]} 42. h4 {[%emt 0:00:05] Weighted Error Value: White=0.43/Black=0.39} 1-0